fUSD/lending_fUSD_20260114
["ID","MTS","AMOUNT","RATE_DAILY","PERIOD"]
[401729681,1768349454087,-1392.52,0.00017534,2]
[401729682,1768349454097,-500.0,0.00017534,2]
[401729683,1768349454108,-836.52,0.00017534,2]
[401729684,1768349454117,-500.0,0.00017534,2]
[401729685,1768349454127,-957.61,0.00017534,2]
[401729686,1768349454137,-500.0,0.00017534,2]
[401729687,1768349454146,-500.0,0.00017534,2]
[401729688,1768349454155,-661.19,0.00017534,2]
[401729689,1768349454164,-1136.09,0.00017534,2]
[401729690,1768349454173,-500.0,0.00017534,2]
[401729691,1768349454182,-1322.38,0.00017534,2]
[401729692,1768349454193,-500.0,0.00017534,2]
[401729693,1768349454202,-538.00957002,0.00017534,2]
[401729694,1768349454211,-500.0,0.00017534,2]
[401729695,1768349454220,-293.07385659,0.00017534,2]
[401729696,1768349454229,-1218.82,0.00017534,2]
[401729697,1768349454237,-587.0,0.00017535,2]
[401729698,1768349454247,-483.21,0.00017574,2]
[401729699,1768349454256,-1279.03,0.00017579,2]
[401729700,1768349454265,-587.0,0.00017589,2]
[401729701,1768349454274,-400.0,0.00017597,2]
[401729702,1768349454283,-400.0,0.00017597,2]
[401729703,1768349454292,-400.0,0.00017597,2]
[401729704,1768349454300,-490.32792259,0.00017597,2]
[401729705,1768349454309,-496.47127164,0.00017632,2]
[401729706,1768349454318,-359.76179104,0.00017632,2]
[401729707,1768349454327,-1018.82861079,0.0001764,2]
[401729708,1768349454336,-1090.76583874,0.0001764,2]
[401729709,1768349454345,-1142.96108138,0.0001764,2]
[401729710,1768349454354,-1321.83922443,0.0001764,2]
[401729711,1768349454363,-5645.94056708,0.0001764,2]
[401729712,1768349454371,-587.5042932,0.00017644,2]
[401729713,1768349454380,-2865.4,0.00017676,2]
[401729714,1768349454390,-834.0,0.0001768,2]
[401729715,1768349454399,-1500.0,0.000177,2]
[401729716,1768349454415,-2438.0,0.0001771,2]
[401729717,1768349454424,-4822.0,0.0001771,2]
[401729718,1768349454434,-6556.0,0.0001771,2]
[401729719,1768349454444,-150.0,0.00017732,2]
[401729720,1768349454453,-150.0,0.00017736,2]
[401729721,1768349454463,-1000.0,0.00017741,2]
[401729722,1768349454472,-150.0,0.00017753,2]
[401729723,1768349454482,-150.0,0.00017753,2]
[401729724,1768349454491,-150.0,0.00017755,2]
[401729725,1768349454501,-150.0,0.00017762,2]
[401729726,1768349454511,-1000.0,0.00017763,2]
[401729727,1768349454520,-1000.0,0.00017768,2]
[401729728,1768349454529,-150.0,0.00017772,2]
[401729729,1768349454538,-189.5,0.00017782,2]
[401729730,1768349454548,-150.0,0.00017791,2]
[401729731,1768349454557,-1000.0,0.00017795,2]
[401729732,1768349454566,-1000.0,0.00017798,2]
[401729733,1768349454576,-30120.0,0.000178,2]
[401729734,1768349454586,-2081.10077391,0.000178,2]
[401729735,1768349454596,-1000.0,0.00017804,2]
[401729736,1768349454605,-1000.0,0.00017807,2]
[401729737,1768349454614,-151.0,0.00017808,2]
[401729738,1768349454624,-703.69,0.00017808,2]
[401729739,1768349454634,-606.67,0.00017808,2]
[401729740,1768349454643,-207.62225783,0.00017808,2]
[401729741,1768349454652,-500.0,0.00017808,2]
[401729742,1768349454661,-865.04,0.00017808,2]
[401729743,1768349454671,-500.0,0.00017808,2]
[401729744,1768349454680,-767.4,0.00017808,2]
[401729745,1768349454689,-531.24,0.00017808,2]
[401729746,1768349454699,-500.0,0.00017808,2]
[401729747,1768349454811,-718.56,0.00017808,2]
[401729748,1768349454821,-500.0,0.00017808,2]
[401729749,1768349454830,-500.0,0.00017808,2]
[401729750,1768349454840,-789.39,0.00017808,2]
[401729751,1768349454849,-1671.94,0.00017808,2]
[401729752,1768349454858,-500.0,0.00017808,2]
[401729753,1768349454868,-890.39,0.00017808,2]
[401729754,1768349454878,-500.0,0.00017808,2]
[401729755,1768349454887,-500.0,0.00017808,2]
[401729756,1768349454897,-588.85,0.00017808,2]
[401729757,1768349454906,-405.90563115,0.00017808,2]
[401729758,1768349454915,-521.68,0.00017808,2]
[401729759,1768349454924,-500.0,0.00017808,2]
[401729760,1768349454933,-548.84,0.00017808,2]
[401729761,1768349454943,-500.0,0.00017808,2]
[401729762,1768349454952,-300.0,0.00017808,2]
[401729763,1768349454962,-817.22,0.00017808,2]
[401729764,1768349454971,-500.0,0.00017808,2]
[401729765,1768349454981,-500.0,0.00017808,2]
[401729766,1768349454991,-527.05,0.00017808,2]
[401729767,1768349455003,-547.46,0.00017808,2]
[401729768,1768349455012,-345.83467575,0.00017808,2]
[401729769,1768349455022,-633.03509761,0.00017808,2]
[401729770,1768349455032,-500.0,0.00017808,2]
[401729771,1768349455043,-500.0,0.00017808,2]
[401729772,1768349455052,-735.02,0.00017808,2]
[401729773,1768349455062,-1063.06,0.00017808,2]
[401729774,1768349455072,-500.0,0.00017808,2]
[401729775,1768349455082,-524.64,0.00017808,2]
[401729776,1768349455091,-500.0,0.00017808,2]
[401729777,1768349455101,-514.11,0.00017808,2]
[401729778,1768349455110,-1325.73,0.00017808,2]
[401729779,1768349455119,-202.75299221,0.00017808,2]
[401729780,1768349455128,-500.0,0.00017808,2]
[401729781,1768349455138,-500.0,0.00017808,2]
[401729782,1768349455147,-1623.89,0.00017808,2]
[401729783,1768349455156,-500.0,0.00017808,2]
[401729784,1768349455166,-916.54,0.00017808,2]
[401729785,1768349455175,-714.82,0.00017808,2]
[401729786,1768349455184,-500.0,0.00017808,2]
[401729787,1768349455197,-500.0,0.00017808,2]
[401729788,1768349455206,-792.13,0.00017808,2]
[401729789,1768349455216,-711.86,0.00017808,2]
[401729790,1768349455225,-500.0,0.00017808,2]
[401729791,1768349455234,-500.0,0.00017808,2]
[401729792,1768349455244,-500.0,0.00017808,2]
[401729793,1768349455254,-500.0,0.00017808,2]
[401729794,1768349455264,-500.0,0.00017808,2]
[401729795,1768349455273,-500.0,0.00017808,2]
[401729796,1768349455287,-500.0,0.00017808,2]
[401729797,1768349455304,-594.59,0.00017808,2]
[401729798,1768349455316,-500.0,0.00017808,2]
[401729799,1768349455335,-571.65,0.00017808,2]
[401729800,1768349455349,-997.85,0.00017808,2]
[401729801,1768349455368,-646.25,0.00017808,2]
[401729802,1768349455377,-432.59737193,0.00017808,2]
[401729803,1768349455387,-292.83289509,0.00017808,2]
[401729804,1768349455397,-500.0,0.00017808,2]
[401729805,1768349455407,-500.0,0.00017808,2]
[401729806,1768349455416,-804.51,0.00017808,2]
[401729807,1768349455426,-500.0,0.00017808,2]
[401729808,1768349455435,-1029.17,0.00017808,2]
[401729809,1768349455449,-5584.94,0.00017808,2]
[401729810,1768349455459,-1004.2,0.00017808,2]
[401729811,1768349455469,-500.0,0.00017808,2]
[401729812,1768349455479,-1000.0,0.00017808,2]
[401729813,1768349455489,-300.77442813,0.00017808,2]
[401729814,1768349455499,-2374.33,0.00017808,2]
[401729815,1768349455508,-500.0,0.00017808,2]
[401729816,1768349455519,-3313.89,0.00017808,2]
[401729817,1768349455529,-500.0,0.00017808,2]
[401729818,1768349455539,-2608.4,0.00017808,2]
[401729819,1768349455549,-500.0,0.00017808,2]
[401729820,1768349455558,-953.65,0.00017808,2]
[401729821,1768349455569,-500.0,0.00017808,2]
[401729822,1768349455578,-1595.77,0.00017808,2]
[401729823,1768349455588,-3647.87,0.00017808,2]
[401729824,1768349455598,-6020.15,0.00017808,2]
[401729825,1768349455608,-500.0,0.00017808,2]
[401729826,1768349455619,-1131.1,0.00017808,2]
[401729827,1768349455629,-500.0,0.00017808,2]
[401729828,1768349455638,-500.0,0.00017808,2]
[401729829,1768349455653,-500.0,0.00017808,2]
[401729830,1768349455673,-3651.63,0.00017808,2]
[401729831,1768349455690,-533.52,0.00017808,2]
[401729832,1768349455699,-2279.93,0.00017808,2]
[401729833,1768349455709,-798.58,0.00017808,2]
[401729834,1768349455718,-300.27089243,0.00017808,2]
[401729835,1768349455727,-3026.78,0.00017808,2]
[401729836,1768349455736,-6438.83,0.00017808,2]
[401729837,1768349455745,-500.0,0.00017808,2]
[401729838,1768349455755,-1392.52,0.00017808,2]
[401729839,1768349455765,-500.0,0.00017808,2]
[401729840,1768349455774,-836.52,0.00017808,2]
[401729841,1768349455783,-558.31758115,0.00017808,2]
[401729842,1768349455792,-957.61,0.00017808,2]
[401729843,1768349455801,-500.0,0.00017808,2]
[401729844,1768349455810,-1136.09,0.00017808,2]
[401729845,1768349455820,-500.0,0.00017808,2]
[401729846,1768349455829,-661.19,0.00017808,2]
[401729847,1768349455838,-1322.38,0.00017808,2]
[401729848,1768349455848,-500.0,0.00017808,2]
[401729849,1768349455857,-1218.82,0.00017808,2]
[401729850,1768349455866,-1000.0,0.00017812,2]
[401729851,1768349455875,-1000.0,0.00017813,2]
[401729852,1768349455884,-150.0,0.00017817,2]
[401729853,1768349455892,-1000.0,0.00017819,2]
[401729854,1768349455902,-269.3348055,0.00017821,2]
[401729855,1768349455911,-1000.0,0.00017824,2]
[401729856,1768349455920,-2246.65067805,0.0001783,2]
[401729857,1768349455929,-21394.0,0.00017834,2]
[401729858,1768349455940,-150.0,0.00017834,2]
[401729859,1768349455950,-1000.0,0.00017835,2]
[401729860,1768349455959,-150.0,0.00017839,2]
[401729861,1768349455968,-1000.0,0.00017849,2]
[401729862,1768349455977,-150.0,0.00017851,2]
[401729863,1768349455986,-200.0,0.00017855,2]
[401729864,1768349455999,-200.0,0.00017856,2]
[401729865,1768349456009,-150.0,0.00017858,2]
[401729866,1768349456018,-150.0,0.00017858,2]
[401729867,1768349456029,-1000.0,0.00017863,2]
[401729868,1768349456039,-184.4,0.00017865,2]
[401729869,1768349456048,-466.4088,0.00017886,2]
[401729870,1768349456057,-150.0,0.00017887,2]
[401729871,1768349456067,-2865.4,0.00017887,2]
[401729872,1768349456076,-1000.0,0.00017896,2]
[401729873,1768349456085,-25000.0,0.000179,3]
[401729874,1768349456094,-1500.0,0.000179,2]
[401729875,1768349456103,-497.02806226,0.000179,2]
[401729876,1768349456112,-198.90312919,0.000179,3]
[401729877,1768349456121,-194.33580947,0.000179,2]
[401729878,1768349456130,-423.94708681,0.000179,2]
[401729879,1768349456139,-194.33580931,0.000179,2]
[401729880,1768349456148,-194.33580931,0.000179,2]
[401729881,1768349456158,-194.33580931,0.000179,2]
[401729882,1768349456167,-194.33580931,0.000179,2]
[401729883,1768349456176,-1044.4742078,0.000179,2]
[401729884,1768349456185,-194.33580931,0.000179,2]
[401729885,1768349456196,-194.33580931,0.000179,2]
[401729886,1768349456206,-194.33580931,0.000179,2]
[401729887,1768349456214,-194.33580931,0.000179,2]
[401729888,1768349456223,-194.33580931,0.000179,2]
[401729889,1768349456232,-194.33580931,0.000179,2]
[401729890,1768349456242,-194.33580931,0.000179,2]
[401729891,1768349456251,-194.33580931,0.000179,2]
[401729892,1768349456260,-194.33580931,0.000179,2]
[401729893,1768349456270,-500.0,0.000179,2]
[401729894,1768349456279,-500.0,0.000179,2]
[401729895,1768349456288,-500.0,0.000179,2]
[401729896,1768349456297,-500.0,0.000179,2]
[401729897,1768349456306,-500.0,0.000179,2]
[401729898,1768349456315,-500.0,0.000179,2]
[401729899,1768349456324,-500.0,0.000179,2]
[401729900,1768349456334,-500.0,0.000179,2]
[401729901,1768349456344,-500.0,0.000179,2]
[401729902,1768349456353,-500.0,0.000179,2]
[401729903,1768349456362,-500.0,0.000179,2]
[401729904,1768349456372,-500.0,0.000179,2]
[401729905,1768349456382,-500.0,0.000179,2]
[401729906,1768349456391,-500.0,0.000179,2]
[401729907,1768349456400,-500.0,0.000179,2]
[401729908,1768349456410,-500.0,0.000179,2]
[401729909,1768349456420,-500.0,0.000179,2]
[401729910,1768349456429,-500.0,0.000179,2]
[401729911,1768349456440,-500.0,0.000179,2]
[401729912,1768349456449,-500.0,0.000179,2]
[401729913,1768349456458,-500.0,0.000179,2]
[401729914,1768349456468,-500.0,0.000179,2]
[401729915,1768349456477,-500.0,0.000179,2]
[401729916,1768349456486,-500.0,0.000179,2]
[401729917,1768349456496,-500.0,0.000179,2]
[401729918,1768349456505,-500.0,0.000179,2]
[401729919,1768349456514,-500.0,0.000179,2]
[401729920,1768349456524,-500.0,0.000179,2]
[401729921,1768349456533,-500.0,0.000179,2]
[401729922,1768349456542,-500.0,0.000179,2]
[401729923,1768349456551,-500.0,0.000179,2]
[401729924,1768349456560,-500.0,0.000179,2]
[401729925,1768349456570,-500.0,0.000179,2]
[401729926,1768349456579,-1000.0,0.00017903,2]
[401729927,1768349456588,-150.0,0.00017904,2]
[401729928,1768349456597,-150.0,0.00017906,2]
[401729929,1768349456607,-152.19327808,0.00017907,2]
[401729930,1768349456616,-1000.0,0.00017916,2]
[401729931,1768349456625,-569.96,0.00017918,2]
[401729932,1768349456635,-1000.0,0.00017918,2]
[401729933,1768349456644,-1000.0,0.00017918,2]
[401729934,1768349456653,-1000.0,0.00017918,2]
[401729935,1768349456662,-1000.0,0.00017918,2]
[401729936,1768349456671,-1000.0,0.00017918,2]
[401729937,1768349456681,-1000.0,0.00017918,2]
[401729938,1768349456690,-557.36,0.00017918,2]
[401729939,1768349456700,-1000.0,0.00017922,2]
[401729940,1768349456709,-150.0,0.00017922,2]
[401729941,1768349456718,-892.276,0.00017925,2]
[401729942,1768349456727,-1000.0,0.00017925,2]
[401729943,1768349456736,-627.108,0.00017925,2]
[401729944,1768349456747,-1000.0,0.00017925,2]
[401729945,1768349456756,-1000.0,0.00017929,2]
[401729946,1768349456765,-810.5,0.0001793,2]
[401729947,1768349456774,-1000.0,0.00017932,2]
[401729948,1768349456783,-171.98,0.00017944,2]
[401729949,1768349456792,-19981.82706419,0.00017946,2]
[401729950,1768349456801,-150.0,0.00017948,2]
[401729951,1768349456810,-1000.0,0.00017948,2]
[401729952,1768349456819,-150.0,0.00017951,2]
[401729953,1768349457089,-1000.0,0.00017955,2]
[401729954,1768349457103,-1000.0,0.00017961,2]
[401729955,1768349457112,-1000.0,0.00017967,2]
[401729956,1768349457121,-172.6744437,0.00017968,3]
[401729957,1768349457131,-9156.0,0.00017973,2]
[401729958,1768349457140,-500.0,0.00017973,2]
[401729959,1768349457149,-500.0,0.00017973,2]
[401729960,1768349457159,-500.0,0.00017973,2]
[401729961,1768349457168,-529.57942449,0.00017973,2]
[401729962,1768349457178,-150.0,0.00017973,2]
[401729963,1768349457187,-500.96497178,0.00017973,2]
[401729964,1768349457197,-500.0,0.00017973,2]
[401729965,1768349457207,-500.0,0.00017973,2]
[401729966,1768349457216,-500.0,0.00017973,2]
[401729967,1768349457225,-500.0,0.00017973,2]
[401729968,1768349457235,-500.0,0.00017973,2]
[401729969,1768349457245,-500.0,0.00017973,2]
[401729970,1768349457254,-500.0,0.00017973,2]
[401729971,1768349457264,-500.0,0.00017973,2]
[401729972,1768349457274,-500.0,0.00017973,2]
[401729973,1768349457283,-500.0,0.00017973,2]
[401729974,1768349457292,-500.0,0.00017973,2]
[401729975,1768349457301,-500.0,0.00017973,2]
[401729976,1768349457311,-500.0,0.00017973,2]
[401729977,1768349457320,-500.0,0.00017973,2]
[401729978,1768349457330,-500.0,0.00017973,2]
[401729979,1768349457340,-500.0,0.00017973,2]
[401729980,1768349457349,-500.0,0.00017973,2]
[401729981,1768349457358,-500.0,0.00017973,2]
[401729982,1768349457368,-500.0,0.00017973,2]
[401729983,1768349457377,-501.08254994,0.00017973,2]
[401729984,1768349457387,-500.0,0.00017973,2]
[401729985,1768349457396,-500.0,0.00017973,2]
[401729986,1768349457406,-438.23367028,0.00017973,2]
[401729987,1768349457415,-588.0072514,0.00017973,2]
[401729988,1768349457425,-500.0,0.00017973,2]
[401729989,1768349457435,-194.39882883,0.00017973,2]
[401729990,1768349457444,-500.62149668,0.00017973,2]
[401729991,1768349457454,-500.0,0.00017973,2]
[401729992,1768349457463,-500.0,0.00017973,2]
[401729993,1768349457473,-500.0,0.00017973,2]
[401729994,1768349457483,-500.0,0.00017973,2]
[401729995,1768349457492,-503.84453135,0.00017973,2]
[401729996,1768349457501,-500.0,0.00017973,2]
[401729997,1768349457510,-500.0,0.00017973,2]
[401729998,1768349457520,-500.0,0.00017973,2]
[401729999,1768349457529,-500.0,0.00017973,2]
[401730000,1768349457538,-500.0,0.00017973,2]
[401730001,1768349457547,-500.0,0.00017973,2]
[401730002,1768349457556,-500.0,0.00017973,2]
[401730003,1768349457565,-357.33728752,0.00017973,2]
[401730004,1768349457574,-150.0,0.00017973,2]
[401730005,1768349457583,-150.0,0.00017978,2]
[401730006,1768349457592,-150.0,0.00017979,2]
[401730007,1768349457602,-150.0,0.00017982,2]
[401730008,1768349457611,-500.0,0.00017982,2]
[401730009,1768349457620,-1000.0,0.00017985,2]
[401730010,1768349457629,-353.36185579,0.0001799,2]
[401730011,1768349457639,-177.16737328,0.0001799,2]
[401730012,1768349457649,-177.16737328,0.0001799,2]
[401730013,1768349457658,-150.0,0.00017999,2]
[401730014,1768349457667,-150.0,0.00017999,2]
[401730015,1768349457677,-230.87580735,0.00017999,2]
[401730016,1768349457686,-240.07141805,0.00017999,2]
[401730017,1768349457696,-300.0,0.00017999,2]
[401730018,1768349457705,-177.82405886,0.00017999,2]
[401730019,1768349457714,-300.0,0.00017999,2]
[401730020,1768349457723,-300.0,0.00017999,2]
[401730021,1768349457733,-666.0,0.00017999,2]
[401730022,1768349457743,-1006.9597,0.00017999,2]
[401730023,1768349457752,-94287.90627645,0.00018,2]
[401730024,1768349457761,-178.67,0.00018,2]
[401730025,1768349457770,-4368981.75216831,0.00018,2]
[401730026,1768349457779,-199186.51333834,0.00018,2]
[401730027,1768349457788,-567555.90860701,0.00018,2]
[401730028,1768349458737,-893.63900864,0.0001565,2]
[401730029,1768349458857,-263.91184472,0.0001395,2]
[401730030,1768349458868,-736.08815528,0.0001395,2]
[401730031,1768349458877,-138.94615719,0.0001565,2]
[401730032,1768349458889,-750.60082058,0.0001565,2]
[401730033,1768349458900,-583.47866666,0.0001565,2]
[401730034,1768349458966,-27.07264849,0.0001565,2]
[401730035,1768349458978,-272.90431028,0.0001565,2]
[401730036,1768349459340,-1103.17049732,0.0001565,2]
[401730037,1768349459349,-1672.72588223,0.00016438,2]
[401730038,1768349459358,-1672.72588223,0.00016438,2]
[401730039,1768349459368,-1672.72588223,0.00016438,2]
[401730040,1768349459377,-1672.72588223,0.00016438,2]
[401730041,1768349459386,-1672.72588223,0.00016438,2]
[401730042,1768349459395,-500.0,0.00016438,2]
[401730043,1768349459404,-500.0,0.00016438,2]
[401730044,1768349459413,-500.0,0.00016438,2]
[401730045,1768349459423,-173.59963859,0.0001655,2]
[401730046,1768349459432,-151.0,0.00016605,2]
[401730047,1768349459441,-500.0,0.00016712,2]
[401730048,1768349459451,-4009.30413762,0.0001745,2]
[401730049,1768349459460,-500.0,0.00017534,2]
[401730050,1768349459469,-569.04,0.0001771,2]
[401730051,1768349459479,-500.0,0.00017808,2]
[401730052,1768349459489,-232.71663536,0.000179,2]
[401730053,1768349459498,-3654.19573955,0.000179,2]
[401730054,1768349459510,-6452.91032248,0.000179,2]
[401730055,1768349459519,-194.33580931,0.000179,2]
[401730056,1768349459528,-4009.30413762,0.000179,2]
[401730057,1768349459537,-35497.63199474,0.00018,2]
[401730058,1768349459548,-1120764.10994839,0.00018,2]
[401730059,1768349459559,-663939.79111237,0.00018,2]
[401730060,1768349459592,-3329.52887302,0.00018,2]
[401730061,1768349478113,618.61,0.00025065,120]
[401730090,1768350199412,150.0,0.00027397,120]
[401730096,1768350223869,305.13,0.0001171,2]
[401730127,1768350353521,544.437336,0.00011124,2]
[401730128,1768350357084,-150.67481279,0.00011999,2]
[401730129,1768350357108,-39.24929506,0.00012743,2]
[401730205,1768350432217,-210.75070494,0.00012743,2]
[401730206,1768350432239,-39.35714537,0.0001305,2]
[401730207,1768350437092,-263.98918334,0.0001305,2]
[401730210,1768350447153,-146.12000923,0.0001305,2]
[401730211,1768350447175,-110.45135353,0.00013199,2]
[401730215,1768350461935,9150.442664,0.00011233,2]
[401730216,1768350462012,9524.697336,0.00011233,2]
[401730280,1768350549093,-250.0,0.00013225,2]
[401730281,1768350549116,-1000.0,0.0001325,2]
[401730282,1768350549137,-161.09375916,0.00013387,2]
[401730283,1768350549158,-3240.0,0.00013487,2]
[401730284,1768350549178,-200.0,0.00013699,2]
[401730285,1768350549199,-539.38673484,0.00013746,2]
[401730286,1768350550076,-660.61326516,0.00013746,2]
[401730287,1768350550096,-151.0,0.00013747,2]
[401730288,1768350550118,-300.0,0.00013747,2]
[401730289,1768350550139,-255.7711266,0.00013747,2]
[401730290,1768350550161,-2500.0,0.00013748,2]
[401730291,1768350550182,-150.0,0.00013748,2]
[401730292,1768350550202,-1200.0,0.00013748,2]
[401730293,1768350550222,-1324.77250224,0.00013749,2]
[401730294,1768350551073,-1568.66749776,0.00013749,2]
[401730295,1768350551096,-163.465,0.00013749,2]
[401730296,1768350551117,-173.4622996,0.00013749,2]
[401730297,1768350551140,-7850.92054772,0.00013749,2]
[401730298,1768350551163,-173.59963859,0.00013749,2]
[401730299,1768350551191,-500.0,0.00013837,2]
[401730300,1768350551218,-500.0,0.00013837,2]
[401730301,1768350551248,-500.0,0.00013837,2]
[401730302,1768350551279,-500.0,0.00013837,2]
[401730303,1768350551311,-500.0,0.00013837,2]
[401730304,1768350551341,-500.0,0.00013837,2]
[401730305,1768350551372,-500.0,0.00013837,2]
[401730306,1768350551401,-500.0,0.00013837,2]
[401730307,1768350551429,-500.0,0.00013837,2]
[401730308,1768350551458,-583.13497625,0.00013837,2]
[401730309,1768350551486,-500.0,0.00013837,2]
[401730310,1768350551759,-500.0,0.00013837,2]
[401730311,1768350551789,-500.0,0.00013837,2]
[401730312,1768350551819,-108.11803772,0.00013837,2]
[401730314,1768350560108,-193.93384689,0.00013749,2]
[401730315,1768350560136,-391.88196228,0.00013837,2]
[401730316,1768350560169,-500.0,0.00013837,2]
[401730317,1768350560200,-500.0,0.00013837,2]
[401730318,1768350560229,-500.0,0.00013837,2]
[401730319,1768350560258,-500.0,0.00013837,2]
[401730320,1768350560287,-500.0,0.00013837,2]
[401730321,1768350560313,-500.0,0.00013837,2]
[401730322,1768350560342,-500.0,0.00013837,2]
[401730323,1768350560370,-500.0,0.00013837,2]
[401730324,1768350560396,-500.0,0.00013837,2]
[401730325,1768350560425,-500.0,0.00013837,2]
[401730326,1768350560452,-500.0,0.00013837,2]
[401730327,1768350560481,-500.0,0.00013837,2]
[401730328,1768350560509,-500.0,0.00013837,2]
[401730329,1768350560536,-500.0,0.00013837,2]
[401730330,1768350560563,-500.0,0.00013837,2]
[401730331,1768350560591,-500.0,0.00013837,2]
[401730332,1768350560618,-500.0,0.00013837,2]
[401730333,1768350560644,-500.0,0.00013837,2]
[401730334,1768350560670,-500.0,0.00013837,2]
[401730335,1768350560697,-500.0,0.00013837,2]
[401730336,1768350560730,-500.0,0.00013837,2]
[401730337,1768350560758,-500.0,0.00013837,2]
[401730338,1768350560785,-500.0,0.00013837,2]
[401730339,1768350560813,-649.99999999,0.00013837,2]
[401730340,1768350560842,-500.0,0.00013837,2]
[401730341,1768350560872,-500.0,0.00013837,2]
[401730342,1768350560895,-500.0,0.00013837,2]
[401730343,1768350560916,-700.13,0.00013838,2]
[401730344,1768350560937,-700.13,0.00013838,2]
[401730345,1768350560959,-700.13,0.00013838,2]
[401730346,1768350560985,-700.13,0.00013838,2]
[401730347,1768350561009,-700.13,0.00013838,2]
[401730348,1768350561031,-151.0,0.0001384,2]
[401730349,1768350561053,-151.0,0.0001384,2]
[401730350,1768350561074,-202.62721365,0.0001384,2]
[401730351,1768350561095,-500.0,0.0001384,2]
[401730352,1768350561115,-200.0,0.0001384,2]
[401730353,1768350561137,-231.99159826,0.0001384,2]
[401730354,1768350561159,-151.0,0.0001384,2]
[401730355,1768350561180,-151.0,0.0001384,2]
[401730356,1768350561202,-151.0,0.0001384,2]
[401730357,1768350561225,-151.0,0.0001384,2]
[401730358,1768350561246,-151.0,0.0001384,2]
[401730359,1768350561268,-151.0,0.0001384,2]
[401730360,1768350561292,-151.0,0.0001384,2]
[401730361,1768350561314,-151.0,0.0001384,2]
[401730362,1768350561337,-151.0,0.0001384,2]
[401730363,1768350561362,-151.0,0.0001384,2]
[401730364,1768350561383,-301.78068963,0.00013847,2]
[401730365,1768350561410,-429.74682131,0.00013847,2]
[401730366,1768350561432,-509.39630906,0.00013847,2]
[401730367,1768350561454,-429.6164184,0.00013847,2]
[401730368,1768350561475,-500.0,0.00013847,2]
[401730369,1768350561496,-500.0,0.00013847,2]
[401730370,1768350561519,-499.4780509,0.00013847,2]
[401730371,1768350563085,-69.18526371,0.00013847,2]
[401730372,1768350563107,-500.0,0.00013847,2]
[401730373,1768350563129,-317.53883731,0.00013847,2]
[401730374,1768350563151,-506.04921746,0.00013847,2]
[401730375,1768350563173,-500.0,0.00013847,2]
[401730376,1768350563195,-269.02017408,0.00013847,2]
[401730377,1768350563217,-500.0,0.00013847,2]
[401730378,1768350563239,-500.0,0.00013847,2]
[401730379,1768350563261,-500.0,0.00013847,2]
[401730380,1768350563296,-12953.83178122,0.00013848,2]
[401730381,1768350574172,-5225.81839859,0.00013749,2]
[401730382,1768350574193,-11403.14857983,0.00013844,2]
[401730430,1768350631615,-195.0,0.00013731,2]
[401730431,1768350631625,-466.37350231,0.00013736,2]
[401730432,1768350631713,-733.62649769,0.00013736,2]
[401730433,1768350631725,-150.0,0.00013736,2]
[401730434,1768350631734,-300.0,0.00013736,2]